[Event "Lliga Catalana DH 2023"]
[Site "Catalonia"]
[Date "2023.02.25"]
[Round "6.1"]
[White "Peralta, Fernando"]
[Black "Henderson de La Fuente, Lance"]
[Result "1/2-1/2"]
[ECO "E90"]
[WhiteElo "2596"]
[BlackElo "2505"]
[Annotator "TA"]
[PlyCount "70"]
[EventDate "2023.01.24"]
[EventType "team-tourn"]
[EventCountry "ESP"]
[SourceTitle "playchess.com"]
[Source "ChessBase"]
[SourceQuality "1"]
[TimeControl "40/5400+30:1800+30"]

{[%evp 16,70,37,25,22,14,47,0,33,27,20,11,102,60,64,66,113,102,106,101,135,135,128,120,168,159,164,152,152,140,193,192,213,210,216,176,268,265,255,287,253,130,137,127,203,203,203,196,195,188,188,183,183,0,188,0,183]} 1. d4 Nf6 2. c4 g6 3. Nc3 Bg7 4. e4 O-O 5. Nf3 d6 6. h3 e5 7. d5 a5 8. g4 {is now debated instead of 8.Bg5.} Na6 9. Be3 Nd7 {E90: King's Indian: Classical: Early deviations and 6 h3.} 10. a3 Nb6 11. g5 {[#]} (11. Rg1 $14) 11... f6 $146 ({Predecessor:} 11... Bd7 12. Nd2 Nc5 13. h4 f5 14. Qc2 Nba4 15. f3 fxe4 16. fxe4 Nxc3 17. Qxc3 Rf4 18. Bxf4 exf4 {½-½ Simantsev,M (2462)-Weinzettl,E (2308) Ceske Budejovice op 2015 (2)}) 12. Rg1 Nc5 13. h4 Kh8 (13... Bd7 $11 {keeps the balance.}) 14. Nd2 fxg5 15. hxg5 a4 (15... Bd7 $14 {might be stronger.}) 16. Qe2 $16 Rf7 17. O-O-O c6 18. Kb1 Bd7 19. f3 Qe7 (19... Bf8 $16) 20. Rh1 Kg8 (20... Bf8 21. Ka1 $16) 21. Rc1 (21. Qh2 Bh8 $16) 21... Raf8 22. Bh3 Rf4 (22... Re8 $16 23. Qg2 Bxh3 24. Qxh3 Bf8) 23. Rcg1 $18 R8f7 24. Bxd7 Nbxd7 25. Qd1 {[%cal Oc3a4]} Nb3 (25... Rf8 $142 26. Bxf4 (26. Nxa4 R4f7 $18) 26... exf4 27. Nxa4 Ra8 28. Nxc5 Nxc5) 26. Bxf4 (26. Nxb3 Rxf3 27. dxc6 bxc6 $18) 26... exf4 27. Nxb3 Bxc3 28. Nd4 ({Much less strong is} 28. bxc3 $6 axb3 29. Kb2 (29. Qxb3 Ne5 $14) 29... Ne5 $16) (28. Nc1 $18 Bg7 29. Qxa4) 28... Bxd4 $16 29. Qxd4 c5 (29... Ne5 $16) 30. Qd1 Ne5 31. Qe2 ({Stronger than} 31. Qxa4 Nxf3 32. Rd1 Nxg5 $17) 31... Qd8 32. Rh3 Qb6 33. Rc1 Qd8 34. Rg1 Qb6 $1 35. Rc1 Qd8 $1 {Weighted Error Value: White=0.27 (precise) /Black=0.23 (precise)} 1/2-1/2

[Event "Lliga Catalana DH 2023"]
[Site "Catalonia"]
[Date "2023.02.25"]
[Round "6.1"]
[White "Gines Esteo, Pedro Antonio"]
[Black "Magem Badals, Jordi"]
[Result "1/2-1/2"]
[ECO "A34"]
[WhiteElo "2505"]
[BlackElo "2510"]
[Annotator "TA"]
[PlyCount "57"]
[EventDate "2023.01.24"]
[EventType "team-tourn"]
[EventCountry "ESP"]
[SourceTitle "playchess.com"]
[Source "ChessBase"]
[SourceQuality "1"]
[TimeControl "40/5400+30:1800+30"]

{[%evp 9,57,0,0,0,2,-32,-20,-72,-92,-107,-98,-102,-111,-84,-76,-195,-216,-209,-200,-231,-241,-283,-279,-275,-287,-282,-283,-278,-261,-262,-269,-258,-261,-308,-304,-324,-289,-281,-282,-437,0,-130,0,-420,-441,-476,-450,-514,-514,-488]} 1. c4 {[%emt 0:00:05]} c5 {[%emt 0:00:13]} 2. Nf3 {[%emt 0:00:39]} Nf6 {[%emt 0:00:16]} 3. Nc3 {[%emt 0:00:10]} d5 {[%emt 0:02:29]} 4. cxd5 {[%emt 0:01:46]} Nxd5 {[%emt 0:01:01]} 5. Ne5 {[%emt 0:03:29]} e6 {[%emt 0:16:16] [#]} 6. e4 $146 {[%emt 0:06:01] A34: Symmetrical English: 2 Nc3, lines with ...d5.} ({Predecessor:} 6. Qa4+ Nd7 7. Nxd5 exd5 8. Qf4 f6 9. Ng4 Nb6 10. d3 Bd6 11. Qe3+ Kf7 12. Nh6+ gxh6 13. Qxh6 {0-1 Huseby,J (534)-Suwara,K (1776) BI-2012-P-00036}) 6... Nc7 {[%emt 0:12:32]} 7. Qh5 {[%emt 0:09:26][%csl Ge5][%cal Rh5f7]} g6 {[%emt 0:02:27]} 8. Qf3 {[%emt 0:01:46]} (8. Qh3 $11) 8... f6 $17 {[%emt 0:01:03]} 9. Ng4 {[%emt 0:01:27]} Bg7 {[%emt 0:04:03]} 10. h4 {[%emt 0:11:51]} Nc6 {[%emt 0:14:22][%cal Bb8c6,Bc6d4,Bd4c2][%mdl 32]} 11. h5 {[%emt 0:01:37] h6 would be deadly.} Nd4 {[%emt 0:00:32]} 12. Qg3 {[%emt 0:03:38]} (12. Qd1 $17) 12... Nc2+ $19 {[%emt 0:20:55]} 13. Kd1 {[%emt 0:00:07]} Nxa1 {[%emt 0:00:02]} 14. h6 {[%emt 0:02:09]} Bf8 {[%emt 0:00:49]} 15. e5 {[%emt 0:00:08]} f5 {[%emt 0:04:02]} 16. Nf6+ {[%emt 0:00:31]} Kf7 {[%emt 0:01:13]} 17. b3 {[%emt 0:00:29]} Be7 {[%emt 0:04:07]} 18. Bb2 {[%emt 0:00:24]} Bxf6 {[%emt 0:04:03]} 19. exf6 {[%emt 0:00:07] [#]} Nxb3 {[%emt 0:00:18]} 20. axb3 {[%emt 0:00:05]} Qd7 $1 {[%emt 0:00:13]} (20... Kxf6 $2 21. Nd5+ Kf7 22. Nxc7 $18) 21. Rh3 {[%emt 0:06:25]} Rd8 {[%emt 0:00:39][%csl Gd8][%cal Rd7d2]} (21... Kxf6 $2 22. Nb5+ Kf7 23. Qe5 $18) 22. Qg5 {[%emt 0:01:09]} b6 {[%emt 0:05:57] White must now prevent ...Ba6.} 23. Rd3 {[%emt 0:23:40] [#]} Qe8 {[%emt 0:00:05]} 24. Re3 {[%emt 0:00:03]} (24. Qg3 $142 Rd7 25. Re3) 24... Qd7 $2 {[%emt 0:02:34]} (24... Ba6 $19 {and Black stays clearly on top.} 25. Bxa6 Nxa6) 25. Rd3 $17 {[%emt 0:01:17] [#] Dancing on a razor blade.} Qe8 {[%emt 0:00:04][%mdl 8192]} (25... Qxd3 $1 $17 26. Bxd3 Rxd3) 26. Re3 $1 $19 {[%emt 0:00:01]} Ba6 {[%emt 0:04:01]} ({Avoid the trap} 26... Qd7 $2 27. Rd3 $19) 27. Bxa6 {[%emt 0:00:02] Black is clearly winning.} Nxa6 28. Ne2 Qd7 {[%emt 0:00:03][%csl Gd8][%cal Rd7d2]} 29. Bc3 {[%emt 0:00:02][%mdl 32768] An interesting game.   Weighted Error Value: White=0.31/Black=0.30. An unexpected result.} 1/2-1/2

[Event "Lliga Catalana DH 2023"]
[Site "Catalonia"]
[Date "2023.02.25"]
[Round "6.2"]
[White "Diaz Camallonga, Carles"]
[Black "Aloma Vidal, Robert"]
[Result "1/2-1/2"]
[ECO "B31"]
[WhiteElo "2472"]
[BlackElo "2446"]
[Annotator "TA"]
[PlyCount "97"]
[EventDate "2023.01.24"]
[EventType "team-tourn"]
[EventCountry "ESP"]
[SourceTitle "playchess.com"]
[Source "ChessBase"]
[SourceQuality "1"]
[TimeControl "40/5400+30:1800+30"]

{[%evp 9,97,8,23,14,18,16,10,10,15,14,20,14,17,14,18,15,18,9,32,41,22,31,29,29,20,27,17,20,17,16,23,14,33,15,13,0,0,-16,0,-37,-39,-52,-16,-16,-14,-13,-13,-15,-20,-18,-16,-29,0,0,27,22,28,18,20,28,26,26,63,65,63,48,66,27,27,27,35,35,42,35,32,8,8,8,9,0,0,0,0,0,0,0,0,0,0,0]} 1. e4 {[%emt 0:00:03]} c5 {[%emt 0:00:12]} 2. Nf3 {[%emt 0:00:05]} Nc6 {[%emt 0:00:07]} 3. Nc3 {[%emt 0:00:04]} g6 {[%emt 0:00:10]} 4. Bb5 {[%emt 0:00:08]} Bg7 {[%emt 0:00:25]} 5. O-O {[%emt 0:00:26]} e5 {[%emt 0:00:38]} 6. a3 {[%emt 0:00:07][%cal Ob2b4] B31: Sicilian: 2...Nc6 3 Bb5 g6.} Nge7 {[%emt 0:00:47]} 7. b4 {[%emt 0:00:25]} d6 {[%emt 0:00:10]} 8. bxc5 {[%emt 0:01:21]} dxc5 {[%emt 0:00:08]} 9. d3 {[%emt 0:00:47]} O-O {[%emt 0:00:53]} 10. Bc4 {[%emt 0:00:31]} h6 {[%emt 0:04:26]} 11. Re1 {[%emt 0:00:23]} Nd4 {[%emt 0:06:51]} 12. Nd2 {[%emt 0:10:15] [#]} Rb8 $146 {[%emt 0:07:38]} ({Predecessor:} 12... Kh7 13. a4 f5 14. exf5 gxf5 15. a5 Ng6 16. Ba3 Qxa5 17. Bb2 Qc7 18. Nd5 Qd6 {0-1 Janaszak,D (2333)-Chen,Q (2485) Titled Tuesday intern op 29th Mar Early blitz 2022 (8)}) 13. a4 {[%emt 0:00:49]} a6 {[%emt 0:01:01]} 14. a5 {[%emt 0:17:14]} Nec6 {[%emt 0:04:01]} 15. Ba3 {[%emt 0:01:05]} Qxa5 {[%emt 0:07:58]} 16. Nd5 {[%emt 0:00:48]} Re8 {[%emt 0:03:11]} 17. c3 {[%emt 0:03:32]} Ne6 {[%emt 0:00:46]} 18. Nb3 {[%emt 0:01:09][%mdl 64] [#] Deflection} Qd8 {[%emt 0:00:44] Strongly threatening ...b5.} 19. Nxc5 {[%emt 0:00:10]} b5 {[%emt 0:06:31] ...Nxc5 would be deadly.} 20. Bb3 {[%emt 0:05:07]} a5 {[%emt 0:02:11]} 21. Nxe6 {[%emt 0:01:49]} Bxe6 {[%emt 0:06:58]} (21... fxe6 {simplifies} 22. Ne3 Ba6 23. Bc1 h5) 22. Bc5 {[%emt 0:00:55]} Bf8 {[%emt 0:11:05]} 23. Bxf8 {[%emt 0:12:41]} Rxf8 {[%emt 0:00:35]} 24. Qc1 {[%emt 0:02:30]} Kg7 {[%emt 0:02:00]} 25. Qa3 {[%emt 0:00:26]} b4 {[%emt 0:03:41]} (25... Qg5 {seems wilder.} 26. Reb1 Rfc8 27. Qd6 Qd8) 26. Qb2 {[%emt 0:04:14]} bxc3 {[%emt 0:04:41]} 27. Qxc3 {[%emt 0:00:05]} Nd4 {[%emt 0:02:48]} 28. Bc4 {[%emt 0:01:43]} Bxd5 {[%emt 0:04:22]} 29. exd5 {[%emt 0:02:59]} Qg5 {[%emt 0:01:37] [#] ...Nf3+ is the strong threat.} 30. Kh1 {[%emt 0:01:02]} Rb6 {[%emt 0:07:59]} (30... Qf6 $5) 31. Rxa5 {[%emt 0:08:47][%cal Od5d6]} Rf6 {[%emt 0:02:21]} 32. Ra2 {[%emt 0:00:32]} Rb8 {[%emt 0:00:55]} 33. Qd2 {[%emt 0:01:01]} Rfb6 {[%emt 0:01:57]} 34. Qxg5 {[%emt 0:03:32]} hxg5 {[%emt 0:00:07]} 35. h3 {[%emt 0:00:02]} Rb1 {[%emt 0:02:16]} 36. Rxb1 {[%emt 0:00:08]} Rxb1+ $14 {[%emt 0:00:02][%mdl 4096] Endgame KRB-KRN} 37. Kh2 {[%emt 0:00:06]} Rb6 {[%emt 0:00:41]} 38. g4 {[%emt 0:10:08]} Rd6 {[%emt 0:01:36]} 39. Kg2 {[%emt 0:00:27]} Kf8 {[%emt 0:00:33]} 40. Ra7 {[%emt 0:01:46]} f5 {[%emt 0:03:15]} 41. Rb7 {[%emt 0:31:56]} Ne2 {[%emt 0:30:37]} 42. Rb2 {[%emt 0:01:59]} Nf4+ {[%emt 0:00:14] The position is equal.} 43. Kg3 {[%emt 0:00:09][%cal Od3d4]} Kg7 {[%emt 0:01:34]} 44. Rb8 {[%emt 0:04:51]} Nxd5 {[%emt 0:00:39]} 45. Rb5 {[%emt 0:01:00]} Nf4 {[%emt 0:00:21]} 46. Rb7+ {[%emt 0:01:11]} Kh8 $1 {[%emt 0:00:39]} 47. Rb8+ {[%emt 0:01:09]} Kg7 {[%emt 0:00:01]} 48. Rb7+ {[%emt 0:00:09]} Kh8 $1 {[%emt 0:00:04]} 49. Rb8+ {[%emt 0:01:13] Weighted Error Value: White=0.05 (flawless) /Black=0.05 (flawless)} 1/2-1/2

[Event "Lliga Catalana DH 2023"]
[Site "Catalonia"]
[Date "2023.02.25"]
[Round "6.2"]
[White "De La Riva Aguado, Oscar"]
[Black "Gonzalez Garcia, Jose"]
[Result "1/2-1/2"]
[ECO "C11"]
[WhiteElo "2441"]
[BlackElo "2450"]
[Annotator "TA"]
[PlyCount "30"]
[EventDate "2023.01.24"]
[EventType "team-tourn"]
[EventCountry "ESP"]
[SourceTitle "playchess.com"]
[Source "ChessBase"]
[SourceQuality "1"]
[TimeControl "40/5400+30:1800+30"]

{[%evp 16,30,18,14,16,12,12,14,6,15,12,8,13,4,8,0,10]} 1. e4 e6 2. d4 d5 3. Nc3 Nf6 4. e5 Nfd7 5. f4 c5 6. Nf3 Nc6 7. Be3 a6 8. a3 cxd4 9. Nxd4 {The position is equal.} Bc5 {C11: French: Classical System: 4 e5 and 4 Bg5 dxe4.} 10. Qd2 O-O 11. Be2 Nxd4 12. Bxd4 b5 13. Bxc5 Nxc5 14. Qd4 Qc7 {[#]} 15. Bf3 $146 ({Predecessor:} 15. g3 Qe7 16. O-O-O Rb8 17. Kb1 Nd7 18. Na2 a5 19. b4 Nb6 20. Rhf1 axb4 21. axb4 {0-1 Sandler,L (2273)-Khusnutdinov,R (2482) Asia Clubs Al Ain 2014 (1.4)}) 15... Bb7 {Not much happened in this game.   Weighted Error Value: White=0.02 (flawless) /Black=0.01 (flawless)} 1/2-1/2

[Event "Lliga Catalana DH 2023"]
[Site "Catalonia"]
[Date "2023.02.25"]
[Round "6.3"]
[White "Iermito, Sebastian"]
[Black "Ribera Veganzones, Serni"]
[Result "1-0"]
[ECO "B13"]
[WhiteElo "2528"]
[BlackElo "2183"]
[Annotator "TA"]
[PlyCount "91"]
[EventDate "2023.01.24"]
[EventType "team-tourn"]
[EventCountry "ESP"]
[SourceTitle "playchess.com"]
[Source "ChessBase"]
[SourceQuality "1"]
[TimeControl "40/5400+30:1800+30"]

{[%evp 9,91,4,23,12,13,11,11,14,30,23,27,27,28,20,21,24,25,24,24,14,20,0,15,0,0,0,39,12,24,33,57,58,66,60,62,7,11,0,60,61,68,52,114,62,156,163,152,140,148,144,160,156,153,136,214,192,312,289,428,429,414,391,403,371,560,448,729,726,29982,1204,1139,1138,1112,1061,1071,0,902,866,797,751,5206,5089,6323,6231]} 1. e4 c6 2. d4 d5 3. exd5 cxd5 4. Bf4 Nc6 5. c3 Nf6 6. Nd2 {B13: Caro-Kann: Exchange Variation and Panov-Botvinnik Attack.} Bf5 7. Ngf3 e6 8. Qb3 {The position is equal.} Qc8 9. Nh4 Be4 10. Nxe4 Nxe4 11. Nf3 Bd6 12. Bxd6 Nxd6 13. Bd3 O-O 14. Qc2 h6 15. O-O Rb8 {[#]} 16. Kh1 $146 ({Predecessor:} 16. Rae1 b5 17. b3 Qc7 18. Re3 Rfc8 19. Qe2 Ne7 20. Ne5 Nef5 21. Rh3 b4 22. g4 {½-½ Hirn,O (2241)-Schmid,R (2309) Oberliga Bayern 1718 2017 (1.2)}) 16... b5 17. g4 f5 18. Rg1 b4 (18... fxg4 {is interesting.} 19. Nh4 g5 20. Rxg4 e5) 19. g5 hxg5 20. Nxg5 bxc3 21. bxc3 Rf6 22. f3 (22. Qe2 $14) 22... Rh6 23. Rae1 {[%cal Oe1e6]} Qd7 (23... Nf7 $11) 24. Qg2 $14 {[%cal Oe1e6] Strongly threatening Rxe6!} Re8 25. Qg3 Na5 {White stays focused until the end.} (25... Nd8 $14) 26. Re2 ({White should play} 26. Nh3 $1 $16) 26... Nac4 {[#]} (26... Rg6 $1 $14) 27. Nh3 $1 $16 Rf8 28. Nf4 {[%cal Oe2e6] Threatens to win with Rxe6!} Rff6 29. Reg2 {[%cal Rg3g7] White is more active.} Ne8 30. Bxc4 dxc4 31. Qe1 Rh7 (31... Qd6 $16 {might work better.} 32. Qg3 Rf7) 32. Ng6 Nd6 (32... Qb7 $142) 33. Qe5 $18 Ne8 (33... Qd8 $142 34. Rb1 Rh6) 34. Qb8 Rxg6 35. Rxg6 {[%cal Od4d5] And now d5! would win.} Kf7 36. R6g2 Nd6 (36... Qc7 $142 37. Qa8 Rh6) 37. Rb1 Rh3 (37... f4 $142 38. Rbg1 Qc6 39. Qxa7+ Qb7 40. Qxb7+ Nxb7) 38. Qa8 Nb5 {[#]} 39. Rxg7+ $3 {[%mdl 512]} Kxg7 40. Rg1+ Kf6 41. Qf8+ Qf7 42. Qd8+ $40 {[%mdl 128] White is up to no good.} Qe7 {[#]} 43. Rg6+ $3 {[%mdl 576] Deflection. White is clearly winning.} Kxg6 44. Qxe7 Nxc3 45. Qxe6+ Kg5 46. Qe3+ {Artfully played by Iermito.   Weighted Error Value: White=0.15 (very precise) /Black=0.55} 1-0

[Event "Lliga Catalana DH 2023"]
[Site "Catalonia"]
[Date "2023.02.25"]
[Round "6.3"]
[White "Ayats Llobera, Gerard"]
[Black "Garcia Ramos, Daniel"]
[Result "0-1"]
[ECO "D35"]
[WhiteElo "2449"]
[BlackElo "2426"]
[Annotator "TA"]
[PlyCount "116"]
[EventDate "2023.01.24"]
[EventType "team-tourn"]
[EventCountry "ESP"]
[SourceTitle "playchess.com"]
[Source "ChessBase"]
[SourceQuality "1"]
[TimeControl "40/5400+30:1800+30"]

{[%evp 12,116,24,10,12,0,0,-24,-17,-26,16,0,0,0,0,6,21,0,0,35,221,220,213,194,160,75,352,138,147,132,142,142,133,139,150,0,0,0,162,149,325,322,335,-7,0,0,0,0,-7,-225,-233,-239,-250,-223,-216,-214,-206,-205,-205,-208,-205,-205,-205,-218,-232,-233,-243,-311,-306,-259,-281,-389,-389,-294,-81,-182,-115,-175,-107,-175,-149,-167,-64,-343,-71,-105,-105,-230,-251,-251,-235,-553,-483,-2309,-2100,-1850,-1742,-1365,-235,-2471,-1414,-865,-1227,-910,-787,-29988,-29989]} 1. d4 {[%emt 0:10:20]} Nf6 {[%emt 0:00:37]} 2. c4 {[%emt 0:00:04]} e6 {[%emt 0:00:33]} 3. Nc3 {[%emt 0:00:14]} d5 {[%emt 0:01:13]} 4. cxd5 {[%emt 0:00:06]} Nxd5 {[%emt 0:02:32]} 5. e4 {[%emt 0:00:05]} Nxc3 {[%emt 0:00:06]} 6. bxc3 {[%emt 0:00:02]} c5 {[%emt 0:00:07]} 7. Rb1 {[%emt 0:00:05]} Be7 {[%emt 0:00:07] The main line 7...Be7 scores better than 7...cxd4. D35: Queen's Gambit Declined: Exchange Variation.} 8. Nf3 {[%emt 0:00:06]} O-O {[%emt 0:00:09]} 9. h4 {[%emt 0:00:03]} cxd4 {[%emt 0:03:31] Black has an edge.} 10. cxd4 {[%emt 0:00:07]} Nc6 {[%emt 0:00:08]} 11. Be2 {[%emt 0:01:00]} b6 {[%emt 0:11:39]} 12. h5 {[%emt 0:07:46]} h6 {[%emt 0:01:37]} 13. Rh3 {[%emt 0:00:45] [#]} f5 $146 {[%emt 0:16:08]} ({Predecessor:} 13... Bb7 14. Rg3 Kh7 15. Qd2 Rc8 16. Kf1 Rg8 17. Kg1 Qc7 18. Bb2 Bd6 19. e5 Bf8 {1-0 Lei,T (2527)-Zhu,J (2326) CHN-ch Rapid 2022 (2)}) 14. Rg3 {[%emt 0:02:42]} fxe4 {[%emt 0:06:55]} 15. Bxh6 {[%emt 0:00:15]} Bf6 {[%emt 0:11:51] [#]} ({Black should play} 15... Rf7 $1 $14 16. Bb5 exf3 17. Bxc6 Rb8) 16. Bxg7 $1 $18 {[%emt 0:09:31][%mdl 512]} Bxg7 {[%emt 0:00:22]} 17. h6 $1 {[%emt 0:00:05][%mdl 64] Pin} Qf6 {[%emt 0:03:32][%cal Of6h6] Strongly threatening ...Qxh6!} 18. hxg7 {[%emt 0:54:59]} (18. Rxg7+ $142 Kh8 19. Ng5 Qxf2+ 20. Kd2) 18... Rd8 $2 {[%emt 0:09:09][%mdl 8192]} (18... Rf7 $16) 19. Ng5 $2 {[%emt 0:00:56]} (19. Qc1 $18 {and White stays clearly on top.} exf3 20. Rxf3 (20. Qxc6 $2 fxe2 21. Rh3 Bd7 $19) (20. Bxf3 $2 Nxd4 21. Kf1 Ba6+ 22. Kg1 Bd3 $19 {[%mdl 64] Remove Defender}) 20... Qxd4 21. Qh6 Qd2+ 22. Qxd2 Rxd2 23. Kxd2) 19... Nxd4 $16 {[%emt 0:04:44]} 20. Nxe4 {[%emt 0:08:40]} Qh4 {[%emt 0:02:00]} 21. Bd3 {[%emt 0:00:53]} Qh1+ {[%emt 0:02:36]} 22. Kd2 {[%emt 0:00:05]} Qh6+ {[%emt 0:00:09]} 23. Ke1 {[%emt 0:05:13]} Qh1+ {[%emt 0:00:58]} 24. Kd2 {[%emt 0:00:01]} Qh6+ {[%emt 0:00:06]} 25. Kc3 $1 {[%emt 0:08:08]} Nf5 $2 {[%emt 0:02:23]} (25... Bb7 $16 {keeps fighting.} 26. Qh5 (26. Kb2 $2 Nf5 $19) 26... Rac8+ 27. Kb4 Qxh5 28. Nf6+ Kf7 29. Nxh5 Nf5 30. Bxf5 exf5) 26. Qh1 $1 $18 {[%emt 0:00:12]} ({Don't blunder} 26. Rg5 $2 Bb7 27. Qh5 Rac8+ 28. Kb2 Qxh5 29. Rxh5 Rxd3 $19) 26... Rxd3+ {[%emt 0:06:28]} 27. Kxd3 $2 {[%emt 0:00:51]} (27. Rxd3 $18 Qxg7+ 28. Kb3 Nd4+ 29. Kb2 Nf5+ 30. Ka3 Qf8+ 31. Kb3) 27... Ba6+ $11 {[%emt 0:00:06]} 28. Kc3 {[%emt 0:00:05]} (28. Kc2 $5 Rc8+ $8 29. Kb2 (29. Rc3 Rxc3+ 30. Kxc3 Qxg7+ 31. Kb3 Nd4+ 32. Kb2 Bd3 $15) 29... Qxh1 30. Rxh1 Nxg3 31. Nxg3 $11) 28... Rc8+ {[%emt 0:00:08]} 29. Kb2 {[%emt 0:00:09] Threatening mate with Qxh6.} Qxh1 {[%emt 0:02:28]} 30. Nf6+ $2 {[%emt 0:01:18]} (30. Rxh1 $11 Nxg3 31. Nxg3) 30... Kf7 $19 {[%emt 0:00:05] Hoping for ...Qh4.} 31. Rxh1 {[%emt 0:00:10]} Nxg3 {[%emt 0:00:28]} (31... Kxf6 $2 32. g8=Q Rxg8 33. Rxg8 $18) 32. Rh8 {[%emt 0:00:51] Black must now prevent Rxc8.} Kxg7 {[%emt 0:01:31]} 33. Rxc8 {[%emt 0:00:02]} Bxc8 {[%emt 0:00:40]} 34. Ne8+ Kf8 {[%emt 0:05:34]} 35. Nd6 {[%emt 0:00:05]} Ba6 {[%emt 0:00:36]} 36. fxg3 {[%emt 0:00:02][%mdl 4096] Endgame KB-KN} Ke7 $1 {[%emt 0:00:05]} 37. Ne4 {[%emt 0:00:05]} Bb7 {[%emt 0:00:05]} 38. Nf2 {[%emt 0:01:16]} Bxg2 {[%emt 0:00:13]} 39. Kc3 {[%emt 0:00:01]} Bd5 {[%emt 0:01:34]} 40. a3 {[%emt 0:00:06]} e5 {[%emt 0:00:16]} 41. Ng4 {[%emt 0:00:33]} Ke6 {[%emt 0:00:20]} 42. Ne3 {[%emt 0:00:08]} Bb7 $2 {[%emt 0:00:44]} (42... a5 $1 $19 {Threatens to win with ...b5.} 43. g4 b5) 43. Kc4 {[%emt 0:00:18]} (43. g4 $17) 43... Ba6+ {[%emt 0:00:24]} (43... Bc6 $1 $19 44. Kc3 Kf6) 44. Kc3 {[%emt 0:00:25] [#]} (44. Kb4 $17) 44... Be2 {[%emt 0:00:09]} (44... Bb5 $1 $19 45. Kd2 Bc6) 45. Kd2 {[%emt 0:00:34]} (45. a4 $17 {was worth a try.}) 45... Bf3 {[%emt 0:00:51]} 46. Kc3 {[%emt 0:00:07]} Kd6 {[%emt 0:01:11]} (46... Bc6 $19 47. Kc4 Kf6) 47. Kd3 $2 {[%emt 0:00:30][%mdl 8192]} (47. g4 $15) 47... Bh5 $2 {[%emt 0:01:00]} (47... b5 $19 {is more deadly. aiming for ...Ke6.} 48. g4 a5) 48. Kc4 {[%emt 0:01:20]} Be2+ {[%emt 0:00:45]} 49. Kb4 {[%emt 0:00:31] [#]} (49. Kc3 $17 {was the only defense.}) 49... a5+ $1 {[%emt 0:01:43]} 50. Kc3 {[%emt 0:00:02]} b5 {[%emt 0:00:13]} 51. Kd2 $2 {[%emt 0:01:57]} (51. g4) 51... Bh5 {[%emt 0:00:28] ...Kc5 would be deadly.} 52. Kc3 {[%emt 0:00:54]} (52. g4 $142 Bg6 53. g5) 52... Kc5 {[%emt 0:00:22]} 53. g4 {[%emt 0:01:30]} Bg6 {[%emt 0:01:29] And now ...b4+ would win.} 54. g5 {[%emt 0:00:15]} e4 $2 {[%emt 0:01:13]} (54... b4+ 55. axb4+ axb4+ 56. Kb3 e4) 55. Ng4 $2 {[%emt 0:00:33]} (55. Ng2) 55... Kd5 {[%emt 0:00:28]} 56. Ne3+ {[%emt 0:00:26]} Ke5 {[%emt 0:00:09]} 57. Nc2 {[%emt 0:00:45]} Bf7 {[%emt 0:00:18]} 58. Nd4 {[%emt 0:00:32] [#]} b4+ $1 {[%emt 0:00:13][%mdl 512] Artfully played by Garcia Ramos.   Weighted Error Value: White=0.79/Black=0.52} 0-1